Body Name,Order date,Department Code,Department,Expense Area Code,Expense Area,Expense type code,Expense type,Amount Paid (�),Supplier name,Description,OrderNo,TransNo,Period
Rother District Council,01/10/2021,041ENVIRON,Environmental Services,70706,Capital - Disabled Facilities Grant,N1012,Capital Advances,"5,074.09",Graham Batehup,Capital Advances Disabled Facilities Grant,211945,2027738,202106
Rother District Council,04/10/2021,091HOUSING,Housing and Community Services,20200,Housing Needs - HB (Housing Benefit),A1110,Agency Staff,"5,940.00",Hastings Borough Council,Agency Staff,211962,2027767,202107
Rother District Council,06/10/2021,081ACQUISIT,"Acquisitions, Transformation and Regeneration",70725,Capital - Blackfriars,N1002,Land & Property fees,"5,000.00",Bevan Brittan LLP,Land & Property fees Capital-Land and Propty - Fees Etc.,211977,2029654,202107
Rother District Council,08/10/2021,101RESOURCES,Resources,20239,Computer Services,D2632,Additional Computer Equipment,"6,490.00",Computacenter (UK) Ltd,Additional Computer Equipment - New PC/Computer,211988,2027972,202107
Rother District Council,11/10/2021,041ENVIRON,Environmental Services,20280,Covid 19 RHSS Reopening High Streets Safely,D2513,Hired and Contracted services,"20,000.00",Huq Industries Limited,Hired and contracted services - Service fee paid,212005,2027979,202107
Rother District Council,13/10/2021,101RESOURCES,Resources,20222,Accountancy,D2513,Hired and Contracted services,"8,000.00",Michael Page International Recruitment Ltd,Hired and contracted services - Staff Recruitment Fee,212040,2027991,202107
Rother District Council,13/10/2021,091HOUSING,Housing and Community Services,20206,UK Resettlement (Syrians),D2513,Hired and Contracted services,"5,250.00",REDACTED DATA,Hired and contracted services - Syrian Resettlement Programme-Rent,212043,2028072,202106
Rother District Council,13/10/2021,041ENVIRON,Environmental Services,70706,Capital - Disabled Facilities Grant,N1012,Capital Advances,"5,000.00",Mr Mark Neale General Building and Plumbing Ltd,Capital Advances Disabled Facilities Grant,212044,2028003,202107
Rother District Council,13/10/2021,081ACQUISIT,"Acquisitions, Transformation and Regeneration",20136,Regeneration,D2513,Hired and Contracted services,"13,500.00",Light up Bexhill CIC,Hired and contracted services - Bexhill Christmas Lights,212050,2028031,202107
Rother District Council,15/10/2021,041ENVIRON,Environmental Services,70706,Capital - Disabled Facilities Grant,N1012,Capital Advances,"6,242.18",Alfa Electric Ltd,Capital Advances Disabled Facilities Grant,212065,2028095,202107
Rother District Council,15/10/2021,101RESOURCES,Resources,20239,Computer Services,D2635,Computer Licences,"23,369.22",Chess Cybersecurity,Computer Licences - Sophos SAV Licence Renewal,212071,2028201,202107
Rother District Council,15/10/2021,101RESOURCES,Resources,20239,Computer Services,D2635,Computer Licences,"11,090.00",Ocella Ltd,Computer Licences - OCELLA Maintenance,212072,2028320,202107
Rother District Council,15/10/2021,031RESOURCES,Chief Executive & Corporate Core,20182,Legal Services,E1101,Third party payment other LAs,"15,073.08",Wealden District Council,Third party payment other LAs - legal counsel costs to wealden-shared cost,212075,2028109,202107
Rother District Council,18/10/2021,091HOUSING,Housing and Community Services,20114,Bexhill Parks & Open Spaces,B2731,Grounds maintenance routine,"69,414.93",Idverde Limited,Grounds Maintenance Routine - Contract,212085,2028057,202107
Rother District Council,18/10/2021,101RESOURCES,Resources,20214,Unapportion Central Overheads,D2513,Hired and Contracted services,"9,054.00",East Sussex Pension Fund,Hired and contracted services - Salary-Pension Fund ERS Unfunded,212088,2028124,202107
Rother District Council,18/10/2021,101RESOURCES,Resources,20214,Unapportion Central Overheads,D2513,Hired and Contracted services,"43,552.50",East Sussex Pension Fund,Hired and contracted services - Salary-Pension Fund ERS Unfunded,212088,2028124,202107
Rother District Council,18/10/2021,081ACQUISIT,"Acquisitions, Transformation and Regeneration",20118,Tourism,D2517,Marketing,"15,000.00",The Charleston Trust (Bloomsbury in Sussex),Marketing - Regular Marketing activities-Tourism,212099,2028127,202107
Rother District Council,18/10/2021,101RESOURCES,Resources,90000,Balance sheet all accounts,R2325,Capital Grants Receipts in Advance Short  Term,"7,541.42",Ewhurst Parish Council,Capital Grants Receipts in Advance Short Term re S106,212100,2029369,202107
Rother District Council,20/10/2021,091HOUSING,Housing and Community Services,20114,Bexhill Parks & Open Spaces,B1100,Repairs to Premises,"9,497.00",Playsafe Playgrounds Ltd,Repairs to Premises - Parks - Playground Repairs,212113,2029438,202107
Rother District Council,21/10/2021,121PRECEPTS,Precepts,42203,Parish Precepts,F1201,Parish precepts,"371,265.00",Bexhill Town Council,Parish precepts,212127,0,202107
Rother District Council,21/10/2021,071STRAT,Strategy and Planning,20246,Planning Applications,D2509,Consultants and Other Services,"69,999.76","G2V Recruitment Group Ltd, t/a Vivid Resourcing",Consultants and other services - Consultants Fees,212132,0,202107
Rother District Council,25/10/2021,041ENVIRON,Environmental Services,70706,Capital - Disabled Facilities Grant,N1012,Capital Advances,"6,000.00",Gregory (Kent) Ltd,Capital Advances Disabled Facilities Grant,212157,2028248,202107
Rother District Council,25/10/2021,041ENVIRON,Environmental Services,70706,Capital - Disabled Facilities Grant,N1012,Capital Advances,"5,000.00",A and A J Bishop,Capital Advances Disabled Facilities Grant,212158,2028249,202107
Rother District Council,25/10/2021,101RESOURCES,Resources,20209,Corporate management,D2516,Audit fees,"8,000.00",Grant Thornton UK LLP,Audit Fees - External Audit,212164,0,202107
Rother District Council,26/10/2021,041ENVIRON,Environmental Services,70706,Capital - Disabled Facilities Grant,N1012,Capital Advances,"11,928.00",Wave Arts Bexhill CIC,Capital Advances Disabled Facilities Grant,212165,2028233,202107
Rother District Council,27/10/2021,081ACQUISIT,"Acquisitions, Transformation and Regeneration",70754,Capital - King Offa Residential Development Scheme,N1004,Architects & Consultant Fees,"9,375.00",The Environment Partnership (TEP) Ltd,Architects & Consultant Fees Capital-Architect and Conslt Fees,212173,0,202107
Rother District Council,27/10/2021,041ENVIRON,Environmental Services,70706,Capital - Disabled Facilities Grant,N1012,Capital Advances,"6,512.00",Sedlescombe Parish Council,Capital Advances Disabled Facilities Grant,212179,2028389,202107
Rother District Council,27/10/2021,041ENVIRON,Environmental Services,70706,Capital - Disabled Facilities Grant,N1012,Capital Advances,"5,000.00",A and A J Bishop,Capital Advances Disabled Facilities Grant,212181,2028272,202107
Rother District Council,27/10/2021,041ENVIRON,Environmental Services,70706,Capital - Disabled Facilities Grant,N1012,Capital Advances,"7,766.23",Alfa Electric Ltd,Capital Advances Disabled Facilities Grant,212182,2028273,202107
Rother District Council,28/10/2021,031RESOURCES,Chief Executive & Corporate Core,70759,Capital - Town Hall Renaissance Project,N1004,Architects & Consultant Fees,"222,497.88",Austin-Smith:Lord Ltd,Architects & Consultant Fees Capital-Architect and Conslt Fees,212197,2029653,202107
Rother District Council,30/10/2021,031RESOURCES,Chief Executive & Corporate Core,70759,Capital - Town Hall Renaissance Project,N1004,Architects & Consultant Fees,"85,000.00",Delap & Waller Ltd,Architects & Consultant Fees Capital-Architect and Conslt Fees,212202,0,202107
Rother District Council,01/11/2021,101RESOURCES,Resources,20216,Cost Of Collection,D2513,Hired and Contracted services,"27,600.00",NEC Software Solutions UK Ltd,Hired and contracted services Service fee paid,212214,2028370,202108
Rother District Council,02/11/2021,081ACQUISIT,"Acquisitions, Transformation and Regeneration",70725,Capital - Blackfriars,N1004,Architects & Consultant Fees,"29,500.00",Icosa Water Limited,Architects & Consultant Fees Capital-Architect and Conslt Fees,212218,0,202108
Rother District Council,02/11/2021,071STRAT,Strategy and Planning,20259,Land Charges,E1101,Third party payment other LAs,"12,347.80",East Sussex County Council,Third party payment other LAs - Fee Payments to ESCC,212232,2028488,202108
Rother District Council,02/11/2021,071STRAT,Strategy and Planning,20259,Land Charges,E1101,Third party payment other LAs,"6,851.00",East Sussex County Council,Third party payment other LAs - Fee Payments to ESCC,212233,2028553,202108
Rother District Council,03/11/2021,031RESOURCES,Chief Executive & Corporate Core,70759,Capital - Town Hall Renaissance Project,N1004,Architects & Consultant Fees,"45,000.00",Ingleton Wood LLP,Architects & Consultant Fees Capital-Architect and Conslt Fees,212242,0,202108
Rother District Council,04/11/2021,101RESOURCES,Resources,90000,Balance sheet all accounts,P1105,Owed by - Alliance Homes (Rother) Ltd,"15,000.00",Link Treasury Services Ltd T/A Link Asset Services,Owed by - Alliance Homes (Rother) Ltd - purchases,212262,0,202108
Rother District Council,05/11/2021,041ENVIRON,Environmental Services,70706,Capital - Disabled Facilities Grant,N1012,Capital Advances,"6,000.00",Mr Mark Neale General Building and Plumbing Ltd,Capital Advances Disabled Facilities Grant,212269,2028538,202108
Rother District Council,05/11/2021,041ENVIRON,Environmental Services,70706,Capital - Disabled Facilities Grant,N1012,Capital Advances,"8,000.00",GMS Adaptations,Capital Advances Disabled Facilities Grant,212270,2028547,202108
Rother District Council,05/11/2021,041ENVIRON,Environmental Services,70706,Capital - Disabled Facilities Grant,N1012,Capital Advances,"9,540.00",A and A J Bishop,Capital Advances Disabled Facilities Grant,212272,2028546,202108
Rother District Council,08/11/2021,091HOUSING,Housing and Community Services,20114,Bexhill Parks & Open Spaces,B2731,Grounds maintenance routine,"69,959.24",Idverde Limited,Grounds maintenance routine - Parks-Grounds Maintenance Contracts,212297,2028550,202108
Rother District Council,08/11/2021,091HOUSING,Housing and Community Services,20107,Camber Beach & Foreshore,D2513,Hired and Contracted services,"8,000.00",The Police and Crime Commissioner for Sussex,Hired and contracted services - Funding-Operation Radcott Camber,212298,2028589,202108
Rother District Council,09/11/2021,081ACQUISIT,"Acquisitions, Transformation and Regeneration",70763,Capital - Bexhill Promenade - Outflow pipe,D2513,Hired and Contracted services,"10,500.00",Canterbury City Council,Hired and contracted services - Cost of Survey,212309,0,202108
Rother District Council,09/11/2021,101RESOURCES,Resources,20239,Computer Services,D2635,Computer Licences,"21,109.99",Granicus-Firmstep Ltd,Computer Licences - Computer Licence Renewal,212312,2028783,202108
Rother District Council,10/11/2021,081ACQUISIT,"Acquisitions, Transformation and Regeneration",70764,Capital - Invest to Save Project,N1008,Equipment,"27,201.00",Coppard Plant Hire Ltd,Capital - Purchase of Equipment,212328,2028792,202108
Rother District Council,11/11/2021,101RESOURCES,Resources,20217,Reliefs & Benefits-Council Tax Benefit,D2513,Hired and Contracted services,"8,857.92",Reigate & Banstead Borough Council,Hired and contracted services Off-site resilience processing,212329,2028991,202107
Rother District Council,11/11/2021,041ENVIRON,Environmental Services,70706,Capital - Disabled Facilities Grant,N1012,Capital Advances,"24,413.84",East Sussex County Council,Capital Advances Disabled Facilities Grant,212331,2028872,202108
Rother District Council,11/11/2021,041ENVIRON,Environmental Services,70706,Capital - Disabled Facilities Grant,N1012,Capital Advances,"10,000.00",Alfa Electric Ltd,Capital Advances Disabled Facilities Grant,212332,2028745,202108
Rother District Council,12/11/2021,031RESOURCES,Chief Executive & Corporate Core,70759,Capital - Town Hall Renaissance Project,N1004,Architects & Consultant Fees,"9,000.00",Omega Geomatics Ltd,Architects & Consultant Fees Capital-Architect and Conslt Fees,212348,0,202108
Rother District Council,12/11/2021,041ENVIRON,Environmental Services,20280,Covid 19 RHSS Reopening High Streets Safely,D2513,Hired and Contracted services,"5,328.00",Graeme Blakemore trading as Adaption & Environmental Support Services,Hired and contracted services - Service fee paid,212351,2028757,202108
Rother District Council,15/11/2021,041ENVIRON,Environmental Services,70706,Capital - Disabled Facilities Grant,N1012,Capital Advances,"7,243.26",A and A J Bishop,Capital Advances Disabled Facilities Grant,212361,2028855,202108
Rother District Council,16/11/2021,041ENVIRON,Environmental Services,70706,Capital - Disabled Facilities Grant,N1012,Capital Advances,"11,246.00",Astor Bannerman (Medical) Ltd,Capital Advances Disabled Facilities Grant,212372,2028802,202108
Rother District Council,16/11/2021,091HOUSING,Housing and Community Services,70714,Capital - Grants Halls and Community Projects,D2513,Hired and Contracted services,"5,000.00",Gatherwell Ltd,Hired and Contracted Services - Lottery set up costs,212376,2028948,202108
Rother District Council,16/11/2021,041ENVIRON,Environmental Services,20280,Covid 19 RHSS Reopening High Streets Safely,D2513,Hired and Contracted services,"7,992.00",Graeme Blakemore trading as Adaption & Environmental Support Services,Hired and contracted services - Service fee paid,212377,2029451,202108
Rother District Council,17/11/2021,101RESOURCES,Resources,20214,Unapportion Central Overheads,D2513,Hired and Contracted services,"9,054.00",East Sussex Pension Fund,Hired and contracted services - Salary-Pension Fund ERS Unfunded,212381,2028806,202108
Rother District Council,17/11/2021,101RESOURCES,Resources,20214,Unapportion Central Overheads,D2513,Hired and Contracted services,"43,763.49",East Sussex Pension Fund,Hired and contracted services - Salary-Pension Fund ERS Unfunded,212381,2028806,202108
Rother District Council,17/11/2021,041ENVIRON,Environmental Services,70706,Capital - Disabled Facilities Grant,N1012,Capital Advances,"7,639.84",Mark Bishop Ltd,Capital Advances Disabled Facilities Grant,212383,2028804,202108
Rother District Council,18/11/2021,041ENVIRON,Environmental Services,70706,Capital - Disabled Facilities Grant,N1012,Capital Advances,"5,900.00",Arjo UK Ltd,Capital Advances Disabled Facilities Grant,212390,2028854,202108
Rother District Council,18/11/2021,091HOUSING,Housing and Community Services,20201,Household Support Fund (HFS) from 202108,D2513,Hired and Contracted services,"10,000.00",Huggg Ltd,Hired and contracted services - Service fee paid,212392,2028838,202108
Rother District Council,18/11/2021,041ENVIRON,Environmental Services,70706,Capital - Disabled Facilities Grant,N1012,Capital Advances,"6,231.28",GMS Adaptations,Capital Advances Disabled Facilities Grant,212394,2028851,202108
Rother District Council,18/11/2021,041ENVIRON,Environmental Services,70706,Capital - Disabled Facilities Grant,N1012,Capital Advances,"8,098.34",Mark Bishop Ltd,Capital Advances Disabled Facilities Grant,212396,2028848,202108
Rother District Council,18/11/2021,101RESOURCES,Resources,20239,Computer Services,D2635,Computer Licences,"13,125.00",Claranet Ltd,Computer Licences - Penetration Testing,212400,0,202108
Rother District Council,18/11/2021,101RESOURCES,Resources,20239,Computer Services,D2635,Computer Licences,"9,000.80",Vodafone Ltd,Computer Licences - GIS System,212401,0,202108
Rother District Council,19/11/2021,041ENVIRON,Environmental Services,70706,Capital - Disabled Facilities Grant,N1012,Capital Advances,"5,606.00",Mr Mark Neale General Building and Plumbing Ltd,Capital Advances Disabled Facilities Grant,212414,2028888,202108
Rother District Council,19/11/2021,041ENVIRON,Environmental Services,70706,Capital - Disabled Facilities Grant,N1012,Capital Advances,"5,628.87",Graham Batehup,Capital Advances Disabled Facilities Grant,212416,2028890,202108
Rother District Council,23/11/2021,081ACQUISIT,"Acquisitions, Transformation and Regeneration",20140,"Housing Policy,Strategy & Dev",D2509,Consultants and Other Services,"100,000.00",Action In Rural Sussex,Consultants and other services - Consultants Fees,212435,2029042,202108
Rother District Council,24/11/2021,091HOUSING,Housing and Community Services,20201,Household Support Fund (HFS) from 202108,D2513,Hired and Contracted services,"20,000.00",Huggg Ltd,Hired and contracted services - Service fee paid,212453,2028977,202108
Rother District Council,25/11/2021,091HOUSING,Housing and Community Services,20306,Afghan Relocation Assistance Policy,D2513,Hired and Contracted services,"9,000.00",Attwood Academies t/a Bexhill Academy,Hired and contracted services - Afghan-Education-Exempt VAT,212457,2029214,202108
Rother District Council,29/11/2021,081ACQUISIT,"Acquisitions, Transformation and Regeneration",70718,Capital - Sidley Recreation Ground,N1008,Equipment,"9,120.00",Fuzion 4 Limited,Capital - Purchase of Equipment,212469,2029443,202108
Rother District Council,30/11/2021,071STRAT,Strategy and Planning,20255,Local Development Framework,D2513,Hired and Contracted services,"7,200.00",East Sussex County Council,Hired and contracted services - AONB Management,212476,2029183,202108
Rother District Council,30/11/2021,071STRAT,Strategy and Planning,20246,Planning Applications,D2509,Consultants and Other Services,"18,000.00",Marcus Berrisford Planning & Environmental Services,Consultants and other services - Consultants Fees,212480,2029057,202108
Rother District Council,01/12/2021,091HOUSING,Housing and Community Services,20114,Bexhill Parks & Open Spaces,B2731,Grounds maintenance routine,"71,986.60",Idverde Limited,Grounds maintenance routine - Parks-Grounds Maintenance Contracts,212499,2029136,202109
Rother District Council,02/12/2021,091HOUSING,Housing and Community Services,20201,Household Support Fund (HFS) from 202108,D2513,Hired and Contracted services,"15,000.00",Huggg Ltd,Hired and contracted services - Service fee paid,212509,2029090,202109
Rother District Council,02/12/2021,091HOUSING,Housing and Community Services,20114,Bexhill Parks & Open Spaces,D2507,Security Services,"21,300.99",Continental Facilities Management Group Ltd,Security services provided,212511,2029240,202108
Rother District Council,03/12/2021,091HOUSING,Housing and Community Services,70727,Capital - Refuse Equipment,N1008,Equipment,"7,958.07",Alfa Electric Ltd,Capital - Purchase of Equipment,212525,0,202109
Rother District Council,07/12/2021,091HOUSING,Housing and Community Services,20113,Bexhill Leisure Pool,B1100,Repairs to Premises,"14,826.00",Global Smart Energy & Controls Ltd,Repairs to Premises - Electrical Installation,212566,0,202109
Rother District Council,07/12/2021,071STRAT,Strategy and Planning,20249,Planning Appeals,D2513,Hired and Contracted services,"7,340.51",DMH Stallard,Hired and contracted services - Appeal Costs,212572,2029194,202109
Rother District Council,08/12/2021,041ENVIRON,Environmental Services,70706,Capital - Disabled Facilities Grant,N1012,Capital Advances,"7,373.97",A and A J Bishop,Capital Advances Disabled Facilities Grant,212574,2029249,202109
Rother District Council,08/12/2021,041ENVIRON,Environmental Services,70706,Capital - Disabled Facilities Grant,N1012,Capital Advances,"7,000.00",Alfa Electric Ltd,Capital Advances Disabled Facilities Grant,212576,2029251,202109
Rother District Council,08/12/2021,041ENVIRON,Environmental Services,70706,Capital - Disabled Facilities Grant,N1012,Capital Advances,"5,000.00",Mr Mark Neale General Building and Plumbing Ltd,Capital Advances Disabled Facilities Grant,212577,2029253,202109
Rother District Council,08/12/2021,091HOUSING,Housing and Community Services,20201,Household Support Fund (HFS) from 202108,D2513,Hired and Contracted services,"13,510.00",Huggg Ltd,Hired and contracted services - Service fee paid,212581,2029234,202109
Rother District Council,08/12/2021,091HOUSING,Housing and Community Services,20204,Housing Administration Account,A1110,Agency Staff,"15,000.12","G2V Recruitment Group Ltd, t/a Vivid Resourcing",Agency Staff,212585,2029619,202109
Rother District Council,08/12/2021,091HOUSING,Housing and Community Services,20200,Housing Needs - HB (Housing Benefit),D2513,Hired and Contracted services,"7,500.00",Bexhill & Rother Homelessness Unity Group (HUG) CIO,Hired and contracted services - Service fee paid,212586,0,202109
Rother District Council,14/12/2021,091HOUSING,Housing and Community Services,20201,Household Support Fund (HFS) from 202108,D2513,Hired and Contracted services,"11,160.00",Huggg Ltd,Hired and contracted services - Service fee paid,212630,2029399,202109
Rother District Council,15/12/2021,081ACQUISIT,"Acquisitions, Transformation and Regeneration",70718,Capital - Sidley Recreation Ground,N1003,Construction/Conversion,"46,930.00",Trinity Civil Engineering Ltd,Construction/Conversion Capital-Contract Payments - General,212632,2029530,202109
Rother District Council,15/12/2021,081ACQUISIT,"Acquisitions, Transformation and Regeneration",70718,Capital - Sidley Recreation Ground,N1003,Construction/Conversion,"50,731.00",Canvas Spaces Ltd,Construction/Conversion Capital-Contract Payments - General,212633,2029569,202109
Rother District Council,15/12/2021,041ENVIRON,Environmental Services,70706,Capital - Disabled Facilities Grant,N1012,Capital Advances,"6,804.00",Hedley Visick Ltd,Capital Advances Disabled Facilities Grant,212642,2029442,202109
Rother District Council,15/12/2021,041ENVIRON,Environmental Services,70706,Capital - Disabled Facilities Grant,N1012,Capital Advances,"7,000.00",A and A J Bishop,Capital Advances Disabled Facilities Grant,212644,2029439,202109
Rother District Council,16/12/2021,101RESOURCES,Resources,20214,Unapportion Central Overheads,D2513,Hired and Contracted services,"9,054.00",East Sussex Pension Fund,Hired and contracted services - Salary-Pension Fund ERS Unfunded,212650,2029552,202109
Rother District Council,16/12/2021,101RESOURCES,Resources,20214,Unapportion Central Overheads,D2513,Hired and Contracted services,"44,126.52",East Sussex Pension Fund,Hired and contracted services - Salary-Pension Fund ERS Unfunded,212650,2029552,202109
Rother District Council,16/12/2021,081ACQUISIT,"Acquisitions, Transformation and Regeneration",70736,Capital - 18-40 Beeching Close Refurbishment,N1003,Construction/Conversion,"150,000.13",Alfa Electric Ltd,Construction/Conversion Capital-Contract Payments - General,212651,2029455,202109
Rother District Council,16/12/2021,041ENVIRON,Environmental Services,70706,Capital - Disabled Facilities Grant,N1012,Capital Advances,"7,437.32",A and A J Bishop,Capital Advances Disabled Facilities Grant,212656,2029558,202109
Rother District Council,20/12/2021,041ENVIRON,Environmental Services,70706,Capital - Disabled Facilities Grant,N1012,Capital Advances,"5,096.71",Mr Mark Neale General Building and Plumbing Ltd,Capital Advances Disabled Facilities Grant,212676,2029581,202109
Rother District Council,21/12/2021,101RESOURCES,Resources,20222,Accountancy,D2509,Consultants and Other Services,"50,749.86",Number 10 Interim Ltd,Consultants and other services - Consultants Fees,212685,2029595,202109
Rother District Council,21/12/2021,041ENVIRON,Environmental Services,70706,Capital - Disabled Facilities Grant,N1012,Capital Advances,"5,000.00",Alfa Electric Ltd,Capital Advances Disabled Facilities Grant,212688,2029597,202109
Rother District Council,21/12/2021,041ENVIRON,Environmental Services,70706,Capital - Disabled Facilities Grant,N1012,Capital Advances,"5,654.00",Prestige Stairlifts Ltd,Capital Advances Disabled Facilities Grant,212689,2029598,202109
Rother District Council,23/12/2021,041ENVIRON,Environmental Services,70706,Capital - Disabled Facilities Grant,N1012,Capital Advances,"7,592.77",Mr Mark Neale General Building and Plumbing Ltd,Capital Advances Disabled Facilities Grant,212717,0,202109
